Cogmind - Beta 16.1 @@@ ROGUE MODE // 2026.04.07 @ 11:57:50 Player: Maelyn Result: Destroyed by G-34 Mercenary with Small Laser Performance ------------- Evolutions (0) 0 Regions Visited (1) 200 Robots Destroyed (9) 45 Value Destroyed (250) 250 Prototype IDs (0) 0 Alien Tech Used (0) 0 Bonus (0) 0 TOTAL SCORE: 495 Bonus ------- None Cogmind --------- Core Integrity 0/250 Matter 141/300 Energy 100/250 System Corruption 0% Temperature Danger (458) Movement Walking (680) Ox8 Location -10/Materials Parts ------- > --- POWER (1) -------- Ion Engine > --- PROPULSION (2) --- Aluminum Leg Aluminum Leg > --- UTILITY (2) ------ Huge Storage Unit > --- WEAPON (2) ------- Medium Laser Medium Laser > --- INVENTORY (25) --- Seismic Detector ECM Suite EM Pulse Gun Light Assault Rifle Peak State ------------ > --- POWER ------------ Light Ion Engine > --- PROPULSION ------- Light Treads Light Treads > --- UTILITY ---------- Small Storage Unit Improved Terrain Scanner > --- WEAPON ----------- Light Assault Rifle Light Assault Rifle > --- INVENTORY -------- Ion Engine Aluminum Leg Aluminum Leg Seismic Detector Medium Laser [Rating: 9] Favorites ----------- Power Light Ion Engine Engine Light Ion Engine Propulsion Light Treads Treads Light Treads Leg Aluminum Leg Utility Improved Terrain Scanner Device Improved Terrain Scanner Storage Small Storage Unit Weapon Light Assault Rifle Energy Gun Medium Laser Ballistic Gun Light Assault Rifle Build | -11 -10 ------- Run | Yrd Mat Slots Evolved . | . . Power . | . . Propulsion . | . . Utility . | . . Weapon . | . . Parts Attached 15 | 9 6 Power 3 | 1 2 Engine 3 | 1 2 Core . | . . Reactor . | . . Propulsion 4 | 3 1 Treads 2 | 2 . Leg 2 | 1 1 Wheel . | . . Hover . | . . Flight . | . . Utility 4 | 3 1 Device 2 | 2 . Storage 2 | 1 1 Processor . | . . Hackware . | . . Protection . | . . Artifact . | . . Weapon 4 | 2 2 Energy Gun 2 | . 2 Energy Cannon . | . . Ballistic Gun 2 | 2 . Ballistic Cannon . | . . Launcher . | . . Special Weapon . | . . Impact Weapon . | . . Slashing Weapon . | . . Piercing Weapon . | . . Special Melee Weapon . | . . Unidentified Prototypes . | . . Parts Lost 6 | . 6 Power 2 | . 2 Propulsion 2 | . 2 Utility 1 | . 1 Weapon 1 | . 1 Highest Loss Streak 5 | . 5 To Critical Strikes . | . . Average Backups 6 | 4 6 Power . | 1 . Propulsion 1 | 1 1 Utility 1 | . 1 Weapon 2 | 1 2 Tool/Special . | . . Unused Backups 3 | 1 2 Power . | . . Propulsion 1 | 1 . Utility 1 | . 1 Weapon 1 | . 1 Tool/Special . | . . Average Slot Usage (%) 89 | . 89 Engine 11 | . 11 Treads 20 | . 20 Leg 3 | . 3 Device 10 | . 10 Storage 14 | . 14 Energy Gun 7 | . 7 Ballistic Gun 20 | . 20 Peak Build Rating 9 | 9 9 Average Rating 6 | 5 7 On Entrance 4 | . 9 Avg Prop Armor Cover (%) . | . . Naked Turns . | . . Heaviest Build 88 | 11 88 Greatest Support 40 | 40 40 Greatest Overweight (x) 8 | 1 8 Average Overweight (x) . | . . Largest Inventory Capacity 25 | 8 25 Average Capacity 16 | 7 19 Most Carried 8 | 8 8 Average Carried 6 | 4 6 Final Capacity 25 | 8 25 Final Carried 5 | 5 4 Class Distribution -------------------- 100% | Mutant Dominant Class ---------------- Mutant | -10/Materials Resources | -11 -10 ----------- Run | Yrd Mat Matter Collected 252 | 177 75 Remotely . | . . Salvage Created 352 | 85 267 Parts 15 | 7 8 Haulers Intercepted . | . . Recyclers Shooed . | . . Parts Field Recycled . | . . Retrieved Matter . | . . Parts Self-Destructed . | . . Prevented . | . . Parts Restored . | . . Kills | -11 -10 ------- Run | Yrd Mat Combat Hostiles Destroyed 6 | . 6 Guns 5 | . 5 Classes Destroyed 3 | 2 1 Tunneler 2 | 2 . Recycler 1 | 1 . Grunt 6 | . 6 Best Kill Streak 4 | 1 4 Combat Bots Only 4 | . 4 Max Kills in Single Turn 1 | 1 1 Gunslinging . | . . Exploded . | . . Melee . | . . Uniques/NPCs Destroyed . | . . Combat | -11 -10 -------- Run | Yrd Mat Hostile Shots Fired 107 | . 107 Missed 21 | . 21 Hits 86 | . 86 Projectile 86 | . 86 Critical Strikes 2 | . 2 Damage Taken 1043 | . 1043 Core 259 | . 259 Absorbed by Shields . | . . Core Remaining (%) 100 | 100 . Volleys Fired 51 | 17 34 Largest 2 | 2 2 Hottest 100 | 40 100 Shots Fired 98 | 34 64 Gun 98 | 34 64 Cannon . | . . Launcher . | . . Special . | . . Kinetic 56 | 34 22 Thermal 42 | . 42 Explosive . | . . Electromagnetic . | . . Robot Hit Streak 10 | 10 7 Robot Miss Streak 5 | 2 5 Penetration Max . | . . Secondary Targets . | . . Shots Hit Robots 63 | 22 41 Core Hits 23 | 6 17 Critical Kills . | . . Critical Parts Destroyed . | . . Critical Strikes 2 | . 2 Burn 2 | . 2 Melee Attacks . | . . Impact . | . . Slashing . | . . Piercing . | . . Sneak Attacks . | . . Combat Hostiles . | . . Follow-up Attacks . | . . Damage Inflicted 660 | 174 486 Guns 660 | 174 486 Cannons . | . . Explosions . | . . Melee . | . . Ramming . | . . Kinetic 326 | 174 152 Thermal 334 | . 334 Explosive . | . . Electromagnetic . | . . Impact . | . . Slashing . | . . Piercing . | . . Highest Corruption . | . . Average Corruption . | . . Corruption Purged . | . . Corruption Blocked . | . . Overload Shots . | . . Overflow Damage . | . . Projectiles . | . . Explosions . | . . Melee . | . . Knockbacks . | . . Impact . | . . Kinetic . | . . Secondary . | . . Self-Inflicted Damage . | . . Shots . | . . Rammed . | . . Targets Rammed . | . . Kicked . | . . Crushed . | . . Highest Temperature 501 | . 501 Average Temperature 237 | . 237 Received Heat Transfer 618 | . 618 Effects 7 | . 7 Shutdowns 1 | . 1 Interference 1 | . 1 Matter Decay 2 | . 2 Short Circuit 1 | . 1 Damage (minor) 1 | . 1 Damage (major) 1 | . 1 Siege Activations . | . . Martial Activations . | . . Shielding Activations . | . . Robots Disrupted . | . . Combat Hostiles . | . . Robots Corrupted . | . . Combat Hostiles . | . . Parts Fried . | . . Impact Corruptions . | . . Robots Melted 1 | . 1 Combat Hostiles 1 | . 1 Parts Melted 4 | . 4 Heat Transferred 1147 | . 1147 Parts Sabotaged . | . . Parts Stolen . | . . Parts Stripped . | . . Power Chain Reactions . | . . Alert | -11 -10 ------- Run | Yrd Mat Maximum Alert Level . | . . Low Security (%) 100 | 100 100 Level 1 . | . . Level 2 . | . . Level 3 . | . . Level 4 . | . . Level 5 . | . . High Security . | . . Max Security . | . . Peak Influence 80 | 5 80 Initial 3 | . 3 Average 11 | 1 15 Influence Increases 165 | 15 150 Destroy 0b10 Robot/C 120 | . 120 Destroy 0b10 Robot/NC 15 | 15 . Destroy Leader 30 | . 30 Influence Decreases 85 | 10 75 Entered New Map 2 | . 2 Time Decay 43 | 10 33 Lost Part 40 | . 40 Squads Dispatched 1 | . 1 Investigation . | . . Extermination . | . . Reinforcement 1 | . 1 Assault . | . . Garrison . | . . Intercept . | . . Searches Triggered . | . . Construction Impeded . | . . Haulers Reinforced . | . . Active Scanning Responses . | . . Cargo Convoy Interrupts . | . . Stealth | -11 -10 --------- Run | Yrd Mat Distress Signals . | . . Communications Jammed . | . . Distress Signals . | . . Times Spotted 11 | . 11 Peak Tracking Total 6 | . 6 Tactical Retreats . | . . Traps | -11 -10 ------- Run | Yrd Mat Traps Triggered . | . . Indirectly . | . . Trap Hack Attempts . | . . Triggered . | . . Disarmed . | . . Reprogrammed . | . . Reused . | . . Traps Extracted . | . . Installed . | . . Triggered . | . . Machines | -11 -10 ---------- Run | Yrd Mat Machines Disabled . | . . Max in Single Turn . | . . Machines Repaired . | . . Machines Dismantled . | . . Machines Sabotaged . | . . Overloaded Fab Kills . | . . Hacking | -11 -10 --------- Run | Yrd Mat Machines Accessed . | . . Terminals . | . . Fabricators . | . . Repair Stations . | . . Recycling Units . | . . Scanalyzers . | . . Garrison Access . | . . Total Hacks . | . . Successful . | . . Failed . | . . Catastrophic . | . . Database Lockouts . | . . Manual . | . . Terminals . | . . Fabricators . | . . Repair Stations . | . . Recycling Units . | . . Scanalyzers . | . . Garrison Access . | . . Terminal Hacks . | . . Fabricator Hacks . | . . Repair Station Hacks . | . . Recycling Unit Hacks . | . . Scanalyzer . | . . Garrison Access Hacks . | . . Unauthorized Hacks . | . . Terminals . | . . Fabricators . | . . Repair Stations . | . . Recycling Units . | . . Scanalyzers . | . . Garrison Access . | . . Data Cores Recovered . | . . Used . | . . Hacking Detections . | . . Full Trace Events . | . . Feedback Events . | . . Feedback Blocked . | . . Robot Schematics Acquired . | . . Robots Built . | . . Authchips . | . . Time . | . . Total Robot Build Rating . | . . Part Schematics Acquired . | . . Parts Built . | . . Authchips . | . . Time . | . . Total Part Build Rating . | . . Part Studies Acquired . | . . Parts Repaired . | . . Time . | . . Parts Recycled . | . . Recycled Matter . | . . Retrieved Matter . | . . Retrieved Components . | . . Parts Scanalyzed . | . . Part Schematics Acquired . | . . Parts Damaged . | . . Bothacking | -11 -10 ------------ Run | Yrd Mat Used RIF Installer . | . . Robots Hacked . | . . Non-combat . | . . Combat . | . . Robot Hacks Applied . | . . Relay Couplers Released . | . . Fabnet Peak Effective % . | . . Robots Rewired . | . . Allies Hacked . | . . Hacks Repelled . | . . Allies | -11 -10 -------- Run | Yrd Mat Total Allies . | . . Largest Group . | . . Highest-Rated Group . | . . Highest-Rated Ally . | . . Total Orders . | . . Ally Attacks . | . . Total Damage . | . . Kills . | . . Allies Corrupted . | . . Allies Melted . | . . Intel | -11 -10 ------- Run | Yrd Mat Active Infowar (turns) 283 | 58 225 Terrain 231 | 6 225 Seismic 52 | 52 . Robot Analysis Total . | . . Derelict Logs Recovered . | . . Drone Launches . | . . Drone Recoveries . | . . Exploration | -11 -10 ------------- Run | Yrd Mat Turns Passed 436 | 118 318 Spaces Moved 139 | 44 95 Core 25 | 25 . Treads 112 | 19 93 Legs 2 | . 2 Wheels . | . . Hover . | . . Flight . | . . Fastest Speed 50 | 50 160 Average Speed 189 | 112 225 Slowest Speed 680 | 160 680 Overloaded Moves . | . . Propulsion Burnouts . | . . Robots Hopped . | . . Potential Cave-ins . | . . Cave-ins Triggered . | . . Exploration Rate (%) 10 | 3 18 Regions Visited 1 Branch Regions . Pre-discovered Areas . | . . Known Exits Taken . | . . Unknown Exits Taken 1 | 1 . Scrap Searched . | . . Spaces Dug . | . . Terrain Destroyed . | . . Melee . | . . Projectile . | . . AOE . | . . Terrain Rammed . | . . Walls Destroyed . | . . Machines Disabled . | . . Actions | -11 -10 --------- Run | Yrd Mat Total 225 | 84 141 Wait 3 | 3 . Move 138 | 43 95 Hop . | . . Pick Up 15 | 11 4 Fast Attach 2 | 2 . Attach 10 | 5 5 Detach . | . . Swap 4 | 2 2 Drop 2 | 1 1 Fire 51 | 17 34 Melee . | . . Ram . | . . Kick . | . . Crush . | . . Escape Stasis . | . . Rewire . | . . Trap . | . . Miscellaneous . | . . Route ------- -11/Scrapyard -10/Materials History --------- Turn | Location | Event 7 | -11/Scrapyard | Discovered new exit (range 15) 119 | -11/Scrapyard | Entered Materials 306 | -10/Materials | Build established: Mutant 344 | -10/Materials | Core integrity fell below 50% 383 | -10/Materials | Lost 5 parts (1p2n1u1w) 388 | -10/Materials | Core integrity fell below 20% 437 | -10/Materials | Destroyed by G-34 Mercenary with Small Laser Last Messages --------------- 00401_ G-34 Mercenary suffers critical hit (Burn). 00401_ G-34 Mercenary overheating. 00402_ Overheating: Matter decay (-10). 00404_ Overheating: System interference. 00404_ Med. Laser temporarily disabled. 00404_ Sml. Laser melted. 00404_ Heat Sink melted. 00404_ Aluminum Leg melted. 00404_ G-34 Mercenary destroyed. 00405_ Acquired 41 matter. 00406_ Overheating: Aluminum Leg damaged (-18). 00409_ Aluminum Leg broken. 00409_ Overheating: Short circuit. 00409_ K-01 Serf collects debris. 00414_ Overheating: Matter decay (-15). 00417_ Acquired Ion Engine. 00427_ G-34 Mercenary destroyed. 00428_ Acquired 34 matter. 00428_ K-01 Serf collects debris. Map ----- +----------------------------------------------------+ | ?????????????????????????????????????????????? | | ?????????????????????????????????????????????? | | ?????????????????????????????????????????????? | | ?????????????????????????????????????????????? | | ???????????????? ??????????????????????????? | | ??????????????? ??????????????????????????? | | ??????????????? ??????????????????????????? | | ???????????????# #?????????????????????????? | | ???????????????# ^ #?????????????????????????? | | ??????????????? +?????????????????????????? | | ????????? ##???# #?????????????????????????? | | ?? ? ????????? # #?????????????????????????? | | ???????????????# #?????????????????????????? | | ??????????#????# #?????????????????????????? | | ??##??#????????# # ?? ???????? ???????????? | | ??#?????#??????# #?#???#???????????????????? | | ???????#???????# ##?#????#?????????????????? | | ????????#????#?# #?#???????????????????????? | | ?????#???#????## #?????????????????????????? | | ??########??#??# =###########??? ???????????? | | ?? #?????# %## #???????????????? | | ? """"" ##???## ## """ #???????????????? | | ? """"" ######a k# """ #???????????????? | | # """"" # %#* """ ##??????????????? | | # + T %g![ #???????????????? | | # """"" # =#@" """ #??#????????????? | | ? """"" ### ## ! # T """ #??#????????????? | | ? """"" ### ###### # " """ #???????????????? | | ?? #?# #??#?# # #???????????????? | | #?##########+###### ##########???????????????? | | ?#???# # #???????????#????????????? | | ??#??# """ # #??####??????????????????? | | #????# """ "T" # #??? #???#???????????????? | | ?????# """ """ # # ? #??? ??????????????? | | ???#?# # #?? #? ?????????????????? | | ?????#######+###### #? #?????#?????????????? | | ??????? ?# #### # #???????????????????? | | ?????#???# + #?????#?????????????? | | ?????????# # #? ?????????????????? | | ?????????# + #???? ??????????????? | | ?????????# ### ## #???????????????????? | | ???######## ####+#######???????????????????? | | ???# # # #?#?????????????????????? | | ???# + + #???????????????????????? | | ???# # # #???????? ??????????????? | | ???# """ # # #????#??????????????????? | | ???# """ ?# # ![ #?????#?????????????????? | | ???# """ ?# # ! #???????????????????????? | | ????####??# ########???????????????????????? | | ??????????# ##??????????#??????????????????? | +----------------------------------------------------+ Best States ------------- Heat Dissipation 25 Energy Generation 10 Energy Capacity 250 Matter Stores 199 Matter Capacity 300 Sight Range 16 Terrain Scan Range 16 Terrain Scan Density 10 Evasion (%) 50 Recoil Reduction 2 Item Schematics ----------------- None Robot Schematics ------------------ None Fabricated ------------ Nothing Repaired ---------- Nothing Studied --------- None Alien Tech Used ----------------- None Achievements -------------- None Challenges ------------ None Game ------ Seed GunBehemothWeb Manual? 0 Play Time 00:06:30 Cumulative 16.3 hours Start 2026.04.07 @ 11:53:37 End 2026.04.07 @ 11:57:50 Sessions 1 Manual Loads 0 Difficulty Rogue Special Mode None Game No. 45 Rogue 45 Adventurer 0 Explorer 0 Win Type - Total 0 Types 0/0/0/0/0/0/0/0/0/0 Lore% 8 Gallery% 18 Achievement% 10 Wizard Run 0 Options --------- Layout 2 ASCII 0 Keyboard 0 Movement Mouse Keybinds 0 Fullscreen 1 Font 24/Crisp Map View 50x44 Zoom Use 0% Tactical HUD 1 Map Filters NONE Filters NONE Steam 1 RUN: 3c5d20e5-4a48-4fa1-b606-1058d376b60e